[Event "Titled Tuesday Blitz November 08 Late 2022"]
[White "Chigaev, Maksim"]
[Black "Jobava, Baadur"]
[WhiteFideId "4108116"]
[BlackFideId "13601520"]
[WhiteElo "2541"]
[BlackElo "2582"]
[Result "1-0"]
[Round "05"]
[TimeControl "180+1"]
[Date "2022.11.08"]
[WhiteClock "0:00:28"]
[BlackClock "0:00:03"]

1. Nf3 {[%clk 0:03:00]}  d5 {[%clk 0:02:58]} 2. c4 {[%clk 0:03:01]}  d4 {[%clk 0:02:54]} 3. b4 {[%clk 0:03:01]}  c5 {[%clk 0:02:54]} 4. Bb2 {[%clk 0:02:58]}  f6 {[%clk 0:02:53]} 5. d3 {[%clk 0:02:52]}  e5 {[%clk 0:02:53]} 6. e3 {[%clk 0:02:53]}  Nc6 {[%clk 0:02:42]} 7. b5 {[%clk 0:02:53]}  Nce7 {[%clk 0:02:39]} 8. exd4 {[%clk 0:02:48]}  exd4 {[%clk 0:02:34]} 9. g3 {[%clk 0:02:49]}  b6 {[%clk 0:02:29]} 10. Bg2 {[%clk 0:02:48]}  Bb7 {[%clk 0:02:29]} 11. O-O {[%clk 0:02:48]}  Qd7 {[%clk 0:02:22]} 12. Re1 {[%clk 0:02:46]}  Nh6 {[%clk 0:02:20]} 13. a4 {[%clk 0:02:44]}  Kf7 {[%clk 0:02:17]} 14. a5 {[%clk 0:02:41]}  Rb8 {[%clk 0:02:08]} 15. Nbd2 {[%clk 0:02:30]}  Ng6 {[%clk 0:01:59]} 16. axb6 {[%clk 0:02:25]}  axb6 {[%clk 0:02:00]} 17. Ra7 {[%clk 0:02:25]}  Be7 {[%clk 0:01:48]} 18. h4 {[%clk 0:02:05]}  Rhc8 {[%clk 0:01:16]} 19. h5 {[%clk 0:01:44]}  Nf8 {[%clk 0:01:16]} 20. Ne4 {[%clk 0:01:41]}  Rc7 {[%clk 0:01:13]} 21. Bc1 {[%clk 0:01:32]}  Ng4 {[%clk 0:00:44]} 22. Bf4 {[%clk 0:01:24]}  Ra8 {[%clk 0:00:29]} 23. Rxa8 {[%clk 0:01:03]}  Bxa8 {[%clk 0:00:29]} 24. Bxc7 {[%clk 0:01:03]}  Qxc7 {[%clk 0:00:30]} 25. Nfg5+ {[%clk 0:01:01]}  fxg5 {[%clk 0:00:30]} 26. Qxg4 {[%clk 0:01:02]}  Qd8 {[%clk 0:00:24]} 27. Qf5+ {[%clk 0:00:45]}  Kg8 {[%clk 0:00:22]} 28. Nxg5 {[%clk 0:00:39]}  Bxg5 {[%clk 0:00:14]} 29. Bxa8 {[%clk 0:00:39]}  Qxa8 {[%clk 0:00:14]} 30. Qxg5 {[%clk 0:00:39]}  h6 {[%clk 0:00:07]} 31. Qd5+ {[%clk 0:00:39]}  Qxd5 {[%clk 0:00:07]} 32. cxd5 {[%clk 0:00:40]}  Kf7 {[%clk 0:00:08]} 33. d6 {[%clk 0:00:39]}  Kf6 {[%clk 0:00:06]} 34. Kg2 {[%clk 0:00:32]}  Nd7 {[%clk 0:00:03]} 35. Re7 {[%clk 0:00:28]} 1-0


[Site "https://www.chess.com"]

[Event "Titled Tuesday Blitz November 08 Late 2022"]
[White "Curtis, John"]
[Black "Jorquera, Marcelo"]
[WhiteFideId "3200256"]
[BlackFideId "3401197"]
[WhiteElo "2203"]
[BlackElo "2136"]
[Result "1-0"]
[Round "05"]
[TimeControl "180+1"]
[Date "2022.11.09"]
[WhiteClock "0:00:20"]
[BlackClock "0:00:04"]

1. e4 {[%clk 0:03:00]}  d5 {[%clk 0:02:58]} 2. exd5 {[%clk 0:02:58]}  Qxd5 {[%clk 0:02:58]} 3. Nc3 {[%clk 0:02:58]}  Qa5 {[%clk 0:02:59]} 4. Bc4 {[%clk 0:02:58]}  Nf6 {[%clk 0:02:59]} 5. Nf3 {[%clk 0:02:58]}  Bf5 {[%clk 0:02:44]} 6. O-O {[%clk 0:02:52]}  e6 {[%clk 0:02:40]} 7. h3 {[%clk 0:02:49]}  c6 {[%clk 0:02:35]} 8. Qe2 {[%clk 0:02:44]}  Be7 {[%clk 0:02:10]} 9. d3 {[%clk 0:02:42]}  O-O {[%clk 0:02:03]} 10. Bf4 {[%clk 0:02:41]}  Nbd7 {[%clk 0:02:00]} 11. Ne5 {[%clk 0:02:31]}  Nxe5 {[%clk 0:01:57]} 12. Bxe5 {[%clk 0:02:31]}  Nd5 {[%clk 0:01:56]} 13. Nxd5 {[%clk 0:02:13]}  cxd5 {[%clk 0:01:54]} 14. Bc3 {[%clk 0:02:05]}  Qd8 {[%clk 0:01:52]} 15. Bb3 {[%clk 0:02:04]}  Bf6 {[%clk 0:01:51]} 16. Be5 {[%clk 0:01:57]}  Bxe5 {[%clk 0:01:51]} 17. Qxe5 {[%clk 0:01:57]}  b5 {[%clk 0:01:43]} 18. g4 {[%clk 0:01:51]}  Bg6 {[%clk 0:01:41]} 19. f4 {[%clk 0:01:51]}  Qb6+ {[%clk 0:01:03]} 20. Kg2 {[%clk 0:01:43]}  f6 {[%clk 0:01:02]} 21. Qe2 {[%clk 0:01:37]}  Bf7 {[%clk 0:01:01]} 22. a4 {[%clk 0:01:24]}  b4 {[%clk 0:00:57]} 23. a5 {[%clk 0:01:24]}  Qc5 {[%clk 0:00:57]} 24. Qf2 {[%clk 0:01:19]}  Rac8 {[%clk 0:00:54]} 25. d4 {[%clk 0:01:16]}  Qd6 {[%clk 0:00:46]} 26. Qd2 {[%clk 0:01:10]}  Rc7 {[%clk 0:00:44]} 27. Rf2 {[%clk 0:01:03]}  Rb8 {[%clk 0:00:38]} 28. Rd1 {[%clk 0:00:53]}  Be8 {[%clk 0:00:37]} 29. f5 {[%clk 0:00:53]}  Bb5 {[%clk 0:00:29]} 30. fxe6 {[%clk 0:00:52]}  Bc4 {[%clk 0:00:20]} 31. Bxc4 {[%clk 0:00:48]}  Rxc4 {[%clk 0:00:19]} 32. Re1 {[%clk 0:00:45]}  Re8 {[%clk 0:00:19]} 33. Rfe2 {[%clk 0:00:41]}  Re7 {[%clk 0:00:19]} 34. c3 {[%clk 0:00:42]}  h6 {[%clk 0:00:14]} 35. Re3 {[%clk 0:00:35]}  Qc6 {[%clk 0:00:12]} 36. Qf2 {[%clk 0:00:34]}  bxc3 {[%clk 0:00:09]} 37. bxc3 {[%clk 0:00:33]}  Rxc3 {[%clk 0:00:09]} 38. Rxc3 {[%clk 0:00:33]}  Qxc3 {[%clk 0:00:09]} 39. Re2 {[%clk 0:00:25]}  Qxa5 {[%clk 0:00:09]} 40. Qf3 {[%clk 0:00:25]}  Qb5 {[%clk 0:00:07]} 41. Rc2 {[%clk 0:00:24]}  Rxe6 {[%clk 0:00:04]} 42. Rc8+ {[%clk 0:00:23]}  Kf7 {[%clk 0:00:04]} 43. Rc2 {[%clk 0:00:21]}  Re7 {[%clk 0:00:04]} 44. Qf5 {[%clk 0:00:20]} 1-0


[Site "https://www.chess.com"]

[Event "Titled Tuesday Blitz November 08 Late 2022"]
[White "Do Nascimento,Christian Almeida"]
[Black "Ardila, Oscar Humberto"]
[WhiteFideId "2143801"]
[BlackFideId "4404742"]
[WhiteElo "2079"]
[BlackElo "1959"]
[Result "0-1"]
[Round "05"]
[TimeControl "180+1"]
[Date "2022.11.09"]
[WhiteClock "0:00:07"]
[BlackClock "0:00:10"]

1. e4 {[%clk 0:03:00]}  e5 {[%clk 0:02:50]} 2. Nf3 {[%clk 0:02:57]}  Nf6 {[%clk 0:02:50]} 3. d4 {[%clk 0:02:53]}  Nxe4 {[%clk 0:02:50]} 4. Bd3 {[%clk 0:02:39]}  d5 {[%clk 0:02:48]} 5. Nxe5 {[%clk 0:02:27]}  Nf6 {[%clk 0:02:48]} 6. O-O {[%clk 0:02:27]}  Be7 {[%clk 0:02:49]} 7. Bg5 {[%clk 0:02:26]}  O-O {[%clk 0:02:49]} 8. Nd2 {[%clk 0:02:26]}  Nbd7 {[%clk 0:02:47]} 9. f4 {[%clk 0:02:25]}  Nxe5 {[%clk 0:02:44]} 10. fxe5 {[%clk 0:02:22]}  Nd7 {[%clk 0:02:44]} 11. Bxe7 {[%clk 0:02:13]}  Qxe7 {[%clk 0:02:44]} 12. Qh5 {[%clk 0:01:49]}  h6 {[%clk 0:02:41]} 13. Nf3 {[%clk 0:01:11]}  Re8 {[%clk 0:02:15]} 14. c3 {[%clk 0:01:07]}  Nf8 {[%clk 0:02:14]} 15. Nh4 {[%clk 0:01:05]}  Be6 {[%clk 0:02:09]} 16. Nf5 {[%clk 0:01:00]}  Qg5 {[%clk 0:02:03]} 17. Qf3 {[%clk 0:01:00]}  Bxf5 {[%clk 0:01:59]} 18. Bxf5 {[%clk 0:01:00]}  c6 {[%clk 0:01:57]} 19. Rf2 {[%clk 0:00:59]}  Re7 {[%clk 0:01:16]} 20. Raf1 {[%clk 0:00:58]}  Ng6 {[%clk 0:01:06]} 21. Bxg6 {[%clk 0:00:56]}  Qxg6 {[%clk 0:01:05]} 22. Qe2 {[%clk 0:00:51]}  Rf8 {[%clk 0:01:02]} 23. Rf3 {[%clk 0:00:48]}  Kh7 {[%clk 0:00:50]} 24. Rg3 {[%clk 0:00:46]}  Qe6 {[%clk 0:00:48]} 25. Qd3+ {[%clk 0:00:42]}  Kh8 {[%clk 0:00:47]} 26. Qd2 {[%clk 0:00:41]}  f5 {[%clk 0:00:29]} 27. exf6 {[%clk 0:00:37]}  Rxf6 {[%clk 0:00:27]} 28. Rgf3 {[%clk 0:00:35]}  Rxf3 {[%clk 0:00:26]} 29. Rxf3 {[%clk 0:00:35]}  Qe1+ {[%clk 0:00:23]} 30. Qxe1 {[%clk 0:00:35]}  Rxe1+ {[%clk 0:00:24]} 31. Rf1 {[%clk 0:00:36]}  Re2 {[%clk 0:00:23]} 32. Rf2 {[%clk 0:00:36]}  Re1+ {[%clk 0:00:23]} 33. Rf1 {[%clk 0:00:36]}  Re2 {[%clk 0:00:23]} 34. Rf8+ {[%clk 0:00:37]}  Kh7 {[%clk 0:00:23]} 35. Rf2 {[%clk 0:00:36]}  Re1+ {[%clk 0:00:23]} 36. Rf1 {[%clk 0:00:37]}  Re2 {[%clk 0:00:23]} 37. b4 {[%clk 0:00:17]}  Rxa2 {[%clk 0:00:21]} 38. Rf7 {[%clk 0:00:17]}  b6 {[%clk 0:00:21]} 39. Rc7 {[%clk 0:00:17]}  a5 {[%clk 0:00:21]} 40. bxa5 {[%clk 0:00:17]}  bxa5 {[%clk 0:00:21]} 41. Rxc6 {[%clk 0:00:17]}  a4 {[%clk 0:00:21]} 42. Rc5 {[%clk 0:00:18]}  a3 {[%clk 0:00:21]} 43. Rxd5 {[%clk 0:00:18]}  Rc2 {[%clk 0:00:21]} 44. Ra5 {[%clk 0:00:18]}  a2 {[%clk 0:00:19]} 45. Kf1 {[%clk 0:00:15]}  Rb2 {[%clk 0:00:20]} 46. c4 {[%clk 0:00:11]}  Rb1+ {[%clk 0:00:20]} 47. Ke2 {[%clk 0:00:12]}  a1=Q {[%clk 0:00:20]} 48. Rxa1 {[%clk 0:00:12]}  Rxa1 {[%clk 0:00:21]} 49. c5 {[%clk 0:00:13]}  Kg6 {[%clk 0:00:20]} 50. Kd3 {[%clk 0:00:13]}  Kf5 {[%clk 0:00:20]} 51. d5 {[%clk 0:00:12]}  Ke5 {[%clk 0:00:20]} 52. d6 {[%clk 0:00:12]}  Rd1+ {[%clk 0:00:17]} 53. Kc4 {[%clk 0:00:11]}  Ke6 {[%clk 0:00:16]} 54. Kb5 {[%clk 0:00:09]}  Kd7 {[%clk 0:00:12]} 55. Kb6 {[%clk 0:00:08]}  Rb1+ {[%clk 0:00:12]} 56. Ka7 {[%clk 0:00:08]}  Kc6 {[%clk 0:00:12]} 57. g4 {[%clk 0:00:06]}  Rb7+ {[%clk 0:00:11]} 58. Ka8 {[%clk 0:00:07]}  Rb5 {[%clk 0:00:11]} 59. h4 {[%clk 0:00:06]}  Rxc5 {[%clk 0:00:11]} 60. d7 {[%clk 0:00:07]}  Kxd7 {[%clk 0:00:11]} 61. Kb7 {[%clk 0:00:07]}  Rb5+ {[%clk 0:00:10]} 0-1


[Site "https://www.chess.com"]

[Event "Titled Tuesday Blitz November 08 Late 2022"]
[White "Fier, Alexandr"]
[Black "Kanakaris, Georgios"]
[WhiteFideId "2107139"]
[BlackFideId "4209460"]
[WhiteElo "2617"]
[BlackElo "2291"]
[Result "0-1"]
[Round "05"]
[TimeControl "180+1"]
[Date "2022.11.08"]
[WhiteClock "0:02:37"]
[BlackClock "0:02:12"]

1. c4 {[%clk 0:03:00]}  e5 {[%clk 0:03:00]} 2. Nc3 {[%clk 0:03:00]}  Nc6 {[%clk 0:03:00]} 3. Nf3 {[%clk 0:03:01]}  Nf6 {[%clk 0:02:57]} 4. e3 {[%clk 0:03:00]}  Bb4 {[%clk 0:02:55]} 5. Qc2 {[%clk 0:03:00]}  O-O {[%clk 0:02:50]} 6. a3 {[%clk 0:02:59]}  Bxc3 {[%clk 0:02:49]} 7. Qxc3 {[%clk 0:03:00]}  Re8 {[%clk 0:02:46]} 8. d4 {[%clk 0:02:55]}  exd4 {[%clk 0:02:42]} 9. Nxd4 {[%clk 0:02:55]}  Ne4 {[%clk 0:02:42]} 10. Qd3 {[%clk 0:02:55]}  Nc5 {[%clk 0:02:40]} 11. Qd1 {[%clk 0:02:41]}  Nxd4 {[%clk 0:02:39]} 12. Qxd4 {[%clk 0:02:42]}  Nb3 {[%clk 0:02:39]} 13. Qc3 {[%clk 0:02:43]}  Nxa1 {[%clk 0:02:39]} 14. b4 {[%clk 0:02:43]}  Qf6 {[%clk 0:02:32]} 15. Qxf6 {[%clk 0:02:41]}  gxf6 {[%clk 0:02:33]} 16. Bb2 {[%clk 0:02:42]}  Nb3 {[%clk 0:02:31]} 17. Kd1 {[%clk 0:02:42]}  a5 {[%clk 0:02:29]} 18. Kc2 {[%clk 0:02:42]}  a4 {[%clk 0:02:28]} 19. Bxf6 {[%clk 0:02:41]}  Ra6 {[%clk 0:02:28]} 20. Bc3 {[%clk 0:02:41]}  Rg6 {[%clk 0:02:26]} 21. f3 {[%clk 0:02:39]}  d6 {[%clk 0:02:24]} 22. e4 {[%clk 0:02:39]}  f5 {[%clk 0:02:19]} 23. exf5 {[%clk 0:02:40]}  Bxf5+ {[%clk 0:02:19]} 24. Kb2 {[%clk 0:02:40]}  Rxg2+ {[%clk 0:02:13]} 25. Bxg2 {[%clk 0:02:37]}  Re2+ {[%clk 0:02:14]} 26. Bd2 {[%clk 0:02:38]}  Rxd2+ {[%clk 0:02:14]} 27. Kc3 {[%clk 0:02:37]}  Rc2# {[%clk 0:02:12]} 0-1


[Site "https://www.chess.com"]

[Event "Titled Tuesday Blitz November 08 Late 2022"]
[White "Freile Martin, Javier"]
[Black "Antonova, Nadezhda"]
[WhiteFideId "3600165"]
[BlackFideId "14700182"]
[WhiteElo "2442"]
[BlackElo "1813"]
[Result "0-1"]
[Round "05"]
[TimeControl "180+1"]
[Date "2022.11.09"]
[WhiteClock "0:01:27"]
[BlackClock "0:02:17"]

1. c4 {[%clk 0:03:00]}  Nf6 {[%clk 0:02:46]} 2. Nc3 {[%clk 0:02:59]}  g6 {[%clk 0:02:42]} 3. d4 {[%clk 0:02:58]}  Bg7 {[%clk 0:02:39]} 4. e4 {[%clk 0:02:55]}  d6 {[%clk 0:02:40]} 5. Nf3 {[%clk 0:02:54]}  O-O {[%clk 0:02:40]} 6. Be2 {[%clk 0:02:54]}  e5 {[%clk 0:02:40]} 7. O-O {[%clk 0:02:53]}  Nc6 {[%clk 0:02:40]} 8. d5 {[%clk 0:02:51]}  Ne7 {[%clk 0:02:41]} 9. Ne1 {[%clk 0:02:43]}  Nd7 {[%clk 0:02:41]} 10. Be3 {[%clk 0:02:38]}  f5 {[%clk 0:02:41]} 11. f3 {[%clk 0:02:39]}  f4 {[%clk 0:02:41]} 12. Bf2 {[%clk 0:02:39]}  g5 {[%clk 0:02:42]} 13. Rc1 {[%clk 0:02:36]}  Rf6 {[%clk 0:02:42]} 14. c5 {[%clk 0:02:19]}  a6 {[%clk 0:02:39]} 15. cxd6 {[%clk 0:02:17]}  cxd6 {[%clk 0:02:39]} 16. Nd3 {[%clk 0:01:53]}  Rh6 {[%clk 0:02:36]} 17. g4 {[%clk 0:01:48]}  fxg3 {[%clk 0:02:32]} 18. hxg3 {[%clk 0:01:47]}  Qe8 {[%clk 0:02:32]} 19. Kg2 {[%clk 0:01:47]}  Ng6 {[%clk 0:02:28]} 20. Na4 {[%clk 0:01:42]}  Nf4+ {[%clk 0:02:22]} 21. gxf4 {[%clk 0:01:31]}  gxf4 {[%clk 0:02:21]} 22. Bg1 {[%clk 0:01:30]}  Qg6+ {[%clk 0:02:18]} 23. Kf2 {[%clk 0:01:27]}  Qg3# {[%clk 0:02:17]} 0-1


[Site "https://www.chess.com"]

[Event "Titled Tuesday Blitz November 08 Late 2022"]
[White "Gareyev, Timur"]
[Black "Dubov, Daniil"]
[WhiteFideId "14200937"]
[BlackFideId "24126055"]
[WhiteElo "2552"]
[BlackElo "2791"]
[Result "0-1"]
[Round "05"]
[TimeControl "180+1"]
[Date "2022.11.08"]
[WhiteClock "0:00:45"]
[BlackClock "0:01:52"]

1. d4 {[%clk 0:03:00]}  Nf6 {[%clk 0:02:59]} 2. c4 {[%clk 0:03:01]}  e6 {[%clk 0:02:59]} 3. Nf3 {[%clk 0:02:57]}  d5 {[%clk 0:02:59]} 4. Nc3 {[%clk 0:02:57]}  a6 {[%clk 0:02:59]} 5. cxd5 {[%clk 0:02:55]}  exd5 {[%clk 0:03:00]} 6. Bg5 {[%clk 0:02:55]}  Be6 {[%clk 0:02:59]} 7. e3 {[%clk 0:02:54]}  Nbd7 {[%clk 0:02:59]} 8. Bd3 {[%clk 0:02:55]}  Bd6 {[%clk 0:02:59]} 9. Bf4 {[%clk 0:02:50]}  Qe7 {[%clk 0:02:56]} 10. O-O {[%clk 0:02:45]}  O-O {[%clk 0:02:53]} 11. h3 {[%clk 0:02:44]}  Rfe8 {[%clk 0:02:51]} 12. Qd2 {[%clk 0:02:32]}  Nf8 {[%clk 0:02:49]} 13. a3 {[%clk 0:02:22]}  Ng6 {[%clk 0:02:48]} 14. b4 {[%clk 0:02:15]}  c6 {[%clk 0:02:41]} 15. Rfe1 {[%clk 0:02:11]}  Qc7 {[%clk 0:02:41]} 16. Bxd6 {[%clk 0:01:55]}  Qxd6 {[%clk 0:02:42]} 17. Qc2 {[%clk 0:01:47]}  Re7 {[%clk 0:02:40]} 18. Rab1 {[%clk 0:01:43]}  Rae8 {[%clk 0:02:39]} 19. a4 {[%clk 0:01:42]}  Bd7 {[%clk 0:02:39]} 20. b5 {[%clk 0:01:42]}  axb5 {[%clk 0:02:37]} 21. axb5 {[%clk 0:01:43]}  Ne4 {[%clk 0:02:37]} 22. bxc6 {[%clk 0:01:37]}  bxc6 {[%clk 0:02:36]} 23. Rb6 {[%clk 0:01:29]}  h6 {[%clk 0:02:10]} 24. Nb5 {[%clk 0:01:27]}  Qf6 {[%clk 0:02:08]} 25. Nc7 {[%clk 0:01:26]}  Rc8 {[%clk 0:02:03]} 26. Na6 {[%clk 0:00:50]}  Bxh3 {[%clk 0:02:02]} 27. Nb4 {[%clk 0:00:45]}  Bd7 {[%clk 0:01:52]} 28. Nxc6 {[%clk 0:00:45]} 0-1


[Site "https://www.chess.com"]

[Event "Titled Tuesday Blitz November 08 Late 2022"]
[White "Gasparyan, David"]
[Black "Phillips, Rene"]
[WhiteFideId "13311980"]
[BlackFideId "2056275"]
[WhiteElo "2300"]
[BlackElo "1995"]
[Result "0-1"]
[Round "05"]
[TimeControl "180+1"]
[Date "2022.11.09"]
[WhiteClock "0:00:02"]
[BlackClock "0:00:08"]

1. g3 {[%clk 0:03:00]}  d5 {[%clk 0:02:54]} 2. Bg2 {[%clk 0:03:01]}  c6 {[%clk 0:02:54]} 3. d3 {[%clk 0:03:01]}  Bf5 {[%clk 0:02:55]} 4. Nd2 {[%clk 0:03:01]}  Nf6 {[%clk 0:02:54]} 5. e4 {[%clk 0:03:02]}  Bg6 {[%clk 0:02:53]} 6. Ne2 {[%clk 0:03:00]}  e6 {[%clk 0:02:53]} 7. O-O {[%clk 0:02:59]}  Bc5 {[%clk 0:02:53]} 8. Nf4 {[%clk 0:02:59]}  Nbd7 {[%clk 0:02:52]} 9. c3 {[%clk 0:02:58]}  dxe4 {[%clk 0:02:47]} 10. dxe4 {[%clk 0:02:57]}  Ne5 {[%clk 0:02:45]} 11. Qe2 {[%clk 0:02:55]}  Qb6 {[%clk 0:02:39]} 12. b4 {[%clk 0:02:53]}  Be7 {[%clk 0:02:37]} 13. Nc4 {[%clk 0:02:42]}  Nxc4 {[%clk 0:02:35]} 14. Qxc4 {[%clk 0:02:42]}  a6 {[%clk 0:02:30]} 15. Be3 {[%clk 0:02:40]}  Qb5 {[%clk 0:02:30]} 16. Qxb5 {[%clk 0:02:28]}  axb5 {[%clk 0:02:31]} 17. f3 {[%clk 0:02:28]}  O-O {[%clk 0:02:28]} 18. Nd3 {[%clk 0:02:22]}  Rfd8 {[%clk 0:02:25]} 19. Rfd1 {[%clk 0:02:21]}  h6 {[%clk 0:02:20]} 20. Kf2 {[%clk 0:02:16]}  Nd7 {[%clk 0:02:18]} 21. Ke2 {[%clk 0:02:13]}  Ra3 {[%clk 0:02:12]} 22. Bd4 {[%clk 0:02:10]}  Rda8 {[%clk 0:02:09]} 23. Rd2 {[%clk 0:02:09]}  Bd8 {[%clk 0:02:06]} 24. Ke3 {[%clk 0:02:04]}  Bb6 {[%clk 0:02:06]} 25. f4 {[%clk 0:01:56]}  Bxd4+ {[%clk 0:01:55]} 26. cxd4 {[%clk 0:01:57]}  Nb6 {[%clk 0:01:53]} 27. Kf3 {[%clk 0:01:00]}  Nc4 {[%clk 0:01:42]} 28. Rdd1 {[%clk 0:01:00]}  Nb2 {[%clk 0:01:39]} 29. Bf1 {[%clk 0:00:59]}  Rc3 {[%clk 0:01:23]} 30. Rd2 {[%clk 0:00:51]}  Nc4 {[%clk 0:01:21]} 31. Rdd1 {[%clk 0:00:34]}  Raa3 {[%clk 0:01:21]} 32. Rac1 {[%clk 0:00:20]}  Nd6 {[%clk 0:01:07]} 33. f5 {[%clk 0:00:14]}  exf5 {[%clk 0:01:05]} 34. e5 {[%clk 0:00:11]}  Bh5+ {[%clk 0:01:00]} 35. Kg2 {[%clk 0:00:12]}  Bxd1 {[%clk 0:00:59]} 36. exd6 {[%clk 0:00:12]}  Rxc1 {[%clk 0:00:47]} 37. d7 {[%clk 0:00:10]}  Ra8 {[%clk 0:00:47]} 38. Nxc1 {[%clk 0:00:09]}  Rd8 {[%clk 0:00:46]} 39. Bd3 {[%clk 0:00:09]}  g6 {[%clk 0:00:45]} 40. Kf2 {[%clk 0:00:07]}  Rxd7 {[%clk 0:00:43]} 41. Ke3 {[%clk 0:00:08]}  Ba4 {[%clk 0:00:40]} 42. Ne2 {[%clk 0:00:08]}  Kg7 {[%clk 0:00:39]} 43. Nc3 {[%clk 0:00:07]}  Kf6 {[%clk 0:00:35]} 44. Be2 {[%clk 0:00:07]}  Bc2 {[%clk 0:00:34]} 45. Bf3 {[%clk 0:00:07]}  Ke7 {[%clk 0:00:31]} 46. d5 {[%clk 0:00:06]}  cxd5 {[%clk 0:00:29]} 47. Bxd5 {[%clk 0:00:07]}  Rc7 {[%clk 0:00:23]} 48. Kd4 {[%clk 0:00:06]}  Be4 {[%clk 0:00:19]} 49. Bxe4 {[%clk 0:00:03]}  fxe4 {[%clk 0:00:20]} 50. Nxe4 {[%clk 0:00:03]}  Rc4+ {[%clk 0:00:20]} 51. Kd5 {[%clk 0:00:03]}  Rxb4 {[%clk 0:00:18]} 52. a3 {[%clk 0:00:03]}  Ra4 {[%clk 0:00:17]} 53. Nc3 {[%clk 0:00:02]}  Rxa3 {[%clk 0:00:13]} 54. Nxb5 {[%clk 0:00:02]}  Ra5 {[%clk 0:00:12]} 55. Kc5 {[%clk 0:00:02]}  Rxb5+ {[%clk 0:00:10]} 56. Kxb5 {[%clk 0:00:03]}  f5 {[%clk 0:00:09]} 57. Kc4 {[%clk 0:00:01]}  g5 {[%clk 0:00:08]} 58. Kd3 {[%clk 0:00:02]}  Ke6 {[%clk 0:00:09]} 59. Ke3 {[%clk 0:00:03]}  b5 {[%clk 0:00:09]} 60. Kd4 {[%clk 0:00:03]}  b4 {[%clk 0:00:08]} 61. Kc4 {[%clk 0:00:03]}  f4 {[%clk 0:00:08]} 62. gxf4 {[%clk 0:00:03]}  gxf4 {[%clk 0:00:08]} 63. Kxb4 {[%clk 0:00:04]}  f3 {[%clk 0:00:09]} 64. Kc3 {[%clk 0:00:05]}  f2 {[%clk 0:00:09]} 65. Kd2 {[%clk 0:00:06]}  f1=Q {[%clk 0:00:09]} 66. Ke3 {[%clk 0:00:05]}  Qg2 {[%clk 0:00:09]} 67. h4 {[%clk 0:00:05]}  Qg3+ {[%clk 0:00:09]} 68. Ke2 {[%clk 0:00:04]}  Qxh4 {[%clk 0:00:08]} 69. Kf3 {[%clk 0:00:05]}  Qg5 {[%clk 0:00:08]} 70. Ke4 {[%clk 0:00:03]}  h5 {[%clk 0:00:08]} 71. Kf3 {[%clk 0:00:04]}  h4 {[%clk 0:00:09]} 72. Kf2 {[%clk 0:00:04]}  h3 {[%clk 0:00:09]} 73. Kf3 {[%clk 0:00:05]}  h2 {[%clk 0:00:09]} 74. Kf2 {[%clk 0:00:06]}  h1=Q {[%clk 0:00:09]} 75. Ke2 {[%clk 0:00:06]}  Qhh4 {[%clk 0:00:08]} 76. Kd1 {[%clk 0:00:02]}  Qgg3 {[%clk 0:00:08]} 77. Ke2 {[%clk 0:00:01]}  Qhh2+ {[%clk 0:00:08]} 78. Kf1 {[%clk 0:00:02]}  Qgg1# {[%clk 0:00:08]} 0-1


[Site "https://www.chess.com"]

[Event "Titled Tuesday Blitz November 08 Late 2022"]
[White "Girsh, Daniel"]
[Black "Richter, Paul"]
[WhiteFideId "30949190"]
[BlackFideId "2046350"]
[WhiteElo "2075"]
[BlackElo "2566"]
[Result "1-0"]
[Round "05"]
[TimeControl "180+1"]
[Date "2022.11.09"]
[WhiteClock "0:00:48"]
[BlackClock "0:01:28"]

1. e4 {[%clk 0:03:00]}  c5 {[%clk 0:02:59]} 2. Nf3 {[%clk 0:02:52]}  d6 {[%clk 0:02:59]} 3. d4 {[%clk 0:02:49]}  cxd4 {[%clk 0:03:00]} 4. Nxd4 {[%clk 0:02:49]}  Nf6 {[%clk 0:02:59]} 5. Nc3 {[%clk 0:02:44]}  g6 {[%clk 0:03:00]} 6. Be3 {[%clk 0:02:38]}  Bg7 {[%clk 0:03:00]} 7. f3 {[%clk 0:02:38]}  O-O {[%clk 0:03:00]} 8. Qd2 {[%clk 0:02:39]}  Nc6 {[%clk 0:02:59]} 9. O-O-O {[%clk 0:02:39]}  d5 {[%clk 0:02:59]} 10. Qe1 {[%clk 0:02:33]}  e5 {[%clk 0:02:58]} 11. Nxc6 {[%clk 0:02:33]}  bxc6 {[%clk 0:02:59]} 12. Bc5 {[%clk 0:02:29]}  Re8 {[%clk 0:02:57]} 13. h4 {[%clk 0:02:21]}  h5 {[%clk 0:02:52]} 14. exd5 {[%clk 0:02:15]}  cxd5 {[%clk 0:02:49]} 15. Bb5 {[%clk 0:02:03]}  Re6 {[%clk 0:02:44]} 16. g4 {[%clk 0:01:59]}  hxg4 {[%clk 0:02:41]} 17. h5 {[%clk 0:01:58]}  gxf3 {[%clk 0:02:24]} 18. Qh4 {[%clk 0:01:39]}  Bb7 {[%clk 0:02:18]} 19. hxg6 {[%clk 0:01:31]}  fxg6 {[%clk 0:02:19]} 20. Rhg1 {[%clk 0:01:13]}  Nh5 {[%clk 0:02:11]} 21. Qg4 {[%clk 0:00:58]}  e4 {[%clk 0:02:00]} 22. Qxe6+ {[%clk 0:00:57]}  Kh8 {[%clk 0:01:51]} 23. Qxg6 {[%clk 0:00:50]}  Qh4 {[%clk 0:01:35]} 24. Rh1 {[%clk 0:00:49]}  Qf4+ {[%clk 0:01:28]} 25. Kb1 {[%clk 0:00:48]} 1-0


[Site "https://www.chess.com"]